{"text_format":"3","workbook":"xlsx","n_sheets":2,"sheets":["НАЧАЛО","ЛИЧЕН МЕСЕЧЕН БЮДЖЕТ"],"read":"whole","date_system":"1900"}

{"sheet":"НАЧАЛО","index":0,"n_rows":7,"n_cols":2,"rows_kept":7}
[null,"ЗА ТОЗИ ШАБЛОН"]
[null,"Използвайте този работен лист за личен месечен бюджет, за да проследявате планираните и действителните месечни приходи и планираните и действителните разходи."]
[null,"Въвеждайте направените разходи от различните категории в съответните таблици."]
[null,"Планираното салдо, действителното салдо и разликата се изчисляват автоматично."]
[null,"Забележка: "]
[null,"Допълнителни инструкции са предоставени в колона A в работния лист ЛИЧЕН МЕСЕЧЕН БЮДЖЕТ. Този текст е скрит нарочно. За да премахнете текста, изберете колона А, след което изберете DELETE. За да покажете текст, изберете колона A, след което променете цвета на шрифта."]
[null,"За да научите повече за таблиците в работния лист, натиснете SHIFT и след това F10 в таблица, изберете опцията ТАБЛИЦА, след което изберете АЛТЕРНАТИВЕН ТЕКСТ."]

{"sheet":"ЛИЧЕН МЕСЕЧЕН БЮДЖЕТ","index":1,"n_rows":64,"n_cols":10,"rows_kept":64,"merged":[[3,1,5,1],[3,2,3,3],[3,6,4,8],[3,9,4,9],[4,2,4,3],[5,2,5,3],[5,6,6,8],[5,9,6,9],[7,1,9,1],[7,2,7,3],[7,6,8,8],[7,9,8,9],[8,2,8,3],[9,2,9,3],[58,6,59,8],[58,9,59,9],[60,6,61,8],[60,9,61,9],[62,6,63,8],[62,9,63,9]]}
["Създайте личен месечен бюджет в този работен лист. Полезни инструкции как да използвате този работен лист, можете да намерите в клетките в тази колона. Натиснете стрелката надолу, за да започнете."]
["Заглавието на този работен лист е в клетката отдясно. Следващата инструкция е в клетка A4.","ЛИЧЕН МЕСЕЧЕН БЮДЖЕТ"]
[]
["Етикетът \"Планиран месечен доход\" е в клетка отдясно. Въведете доход 1 в клетка E4 и допълнителен доход – в E5, за да изчислите общия месечен доход в клетка E6. Следващата инструкция е в клетка A6.","ПЛАНИРАН МЕСЕЧЕН ДОХОД","Доход 1",null,{"v":4300,"d":"4,300.00 лв."},null,"ПЛАНИРАНО САЛДО \n(планиран доход минус разходи)",null,null,{"$f":"E6-J59","v":{"v":3405,"d":"3,405.00 лв."}}]
[null,null,"Допълнителен доход",null,{"v":300,"d":"300.00 лв."}]
["Планираното салдо се изчислява автоматично в клетка J4, действителното салдо – в J6, а разликата – в J8. Следващата инструкция е в клетка A8.",null,"Общ месечен доход",null,{"$f":"SUM(E4:E5)","v":{"v":4600,"d":"4,600.00 лв."}},null,"ДЕЙСТВИТЕЛНО САЛДО \n(действителен доход минус разходи)",null,null,{"$f":"E10-J61","v":{"v":3064,"d":"3,064.00 лв."}}]
[]
["Етикетът \"Действителен месечен доход\" е в клетка отдясно. Въведете доход 1 в клетка E8 и допълнителен доход – в E9, за да изчислите общия месечен доход в клетка E10. Следващата инструкция е в клетка A12.","ДЕЙСТВИТЕЛЕН МЕСЕЧЕН ДОХОД","Доход 1",null,{"v":4000,"d":"4,000.00 лв."},null,"РАЗЛИКА \n(действително минус планирано)",null,null,{"$f":"J6-J4","v":{"v":-341,"d":"-341.00 лв."}}]
[null,null,"Допълнителен доход",null,{"v":300,"d":"300.00 лв."}]
[null,null,"Общ месечен доход",null,{"$f":"SUM(E8:E9)","v":{"v":4300,"d":"4,300.00 лв."}}]
[]
["Въведете подробните данни в таблицата \"Домакинство\", започваща от клетката вдясно, и в таблицата \"Развлечения\", започваща от клетка G12. Следващата инструкция е в клетка A25.","ДОМАКИНСТВО","Планиран разход","Действителен разход","Разлика",null,"РАЗВЛЕЧЕНИЯ","Планиран разход","Действителен разход","Разлика"]
[null,"Ипотека или наем",{"v":1000,"d":"1,000.00 лв."},{"v":1000,"d":"1,000.00 лв."},{"$f":"Домакинство[[#This Row],[Планиран разход]]-Домакинство[[#This Row],[Действителен разход]]","v":{"v":0,"d":"0.00 лв."}},null,"Вечер за развлечения извън дома",null,null,{"$f":"Развлечения[[#This Row],[Планиран разход]]-Развлечения[[#This Row],[Действителен разход]]","v":{"v":0,"d":"0.00 лв."}}]
[null,"Телефон",{"v":54,"d":"54.00 лв."},{"v":100,"d":"100.00 лв."},{"$f":"Домакинство[[#This Row],[Планиран разход]]-Домакинство[[#This Row],[Действителен разход]]","v":{"v":-46,"d":"-46.00 лв."}},null,"Музикални платформи",null,null,{"$f":"Развлечения[[#This Row],[Планиран разход]]-Развлечения[[#This Row],[Действителен разход]]","v":{"v":0,"d":"0.00 лв."}}]
[null,"Електричество",{"v":44,"d":"44.00 лв."},{"v":56,"d":"56.00 лв."},{"$f":"Домакинство[[#This Row],[Планиран разход]]-Домакинство[[#This Row],[Действителен разход]]","v":{"v":-12,"d":"-12.00 лв."}},null,"Филми",null,null,{"$f":"Развлечения[[#This Row],[Планиран разход]]-Развлечения[[#This Row],[Действителен разход]]","v":{"v":0,"d":"0.00 лв."}}]
[null,"Газ",{"v":22,"d":"22.00 лв."},{"v":28,"d":"28.00 лв."},{"$f":"Домакинство[[#This Row],[Планиран разход]]-Домакинство[[#This Row],[Действителен разход]]","v":{"v":-6,"d":"-6.00 лв."}},null,"Концерти",null,null,{"$f":"Развлечения[[#This Row],[Планиран разход]]-Развлечения[[#This Row],[Действителен разход]]","v":{"v":0,"d":"0.00 лв."}}]
[null,"ВИК",{"v":8,"d":"8.00 лв."},{"v":8,"d":"8.00 лв."},{"$f":"Домакинство[[#This Row],[Планиран разход]]-Домакинство[[#This Row],[Действителен разход]]","v":{"v":0,"d":"0.00 лв."}},null,"Спортни събития",null,null,{"$f":"Развлечения[[#This Row],[Планиран разход]]-Развлечения[[#This Row],[Действителен разход]]","v":{"v":0,"d":"0.00 лв."}}]
[null,"Кабелна телевизия",{"v":34,"d":"34.00 лв."},{"v":34,"d":"34.00 лв."},{"$f":"Домакинство[[#This Row],[Планиран разход]]-Домакинство[[#This Row],[Действителен разход]]","v":{"v":0,"d":"0.00 лв."}},null,"Театър",null,null,{"$f":"Развлечения[[#This Row],[Планиран разход]]-Развлечения[[#This Row],[Действителен разход]]","v":{"v":0,"d":"0.00 лв."}}]
[null,"Такса смет",{"v":10,"d":"10.00 лв."},{"v":10,"d":"10.00 лв."},{"$f":"Домакинство[[#This Row],[Планиран разход]]-Домакинство[[#This Row],[Действителен разход]]","v":{"v":0,"d":"0.00 лв."}},null,"Други",null,null,{"$f":"Развлечения[[#This Row],[Планиран разход]]-Развлечения[[#This Row],[Действителен разход]]","v":{"v":0,"d":"0.00 лв."}}]
[null,"Поддръжка или ремонти",{"v":23,"d":"23.00 лв."},{"v":0,"d":"0.00 лв."},{"$f":"Домакинство[[#This Row],[Планиран разход]]-Домакинство[[#This Row],[Действителен разход]]","v":{"v":23,"d":"23.00 лв."}},null,"Други",null,null,{"$f":"Развлечения[[#This Row],[Планиран разход]]-Развлечения[[#This Row],[Действителен разход]]","v":{"v":0,"d":"0.00 лв."}}]
[null,"Доставки",{"v":0,"d":"0.00 лв."},{"v":0,"d":"0.00 лв."},{"$f":"Домакинство[[#This Row],[Планиран разход]]-Домакинство[[#This Row],[Действителен разход]]","v":{"v":0,"d":"0.00 лв."}},null,"Други",null,null,{"$f":"Развлечения[[#This Row],[Планиран разход]]-Развлечения[[#This Row],[Действителен разход]]","v":{"v":0,"d":"0.00 лв."}}]
[null,"Други",{"v":0,"d":"0.00 лв."},{"v":0,"d":"0.00 лв."},{"$f":"Домакинство[[#This Row],[Планиран разход]]-Домакинство[[#This Row],[Действителен разход]]","v":{"v":0,"d":"0.00 лв."}},null,"Междинна сума",null,null,{"$f":"SUBTOTAL(109,Развлечения[Разлика])","v":{"v":0,"d":"0.00 лв."}}]
[null,"Междинна сума",null,null,{"$f":"SUBTOTAL(109,Домакинство[Разлика])","v":{"v":-41,"d":"-41.00 лв."}}]
[{"$nulls":6},"ЗАЕМИ","Планиран разход","Действителен разход","Разлика"]
["Въведете подробните данни в таблицата \"Транспорт\", започваща от клетката вдясно, и в таблицата \"Заеми\", започваща от клетка G24. Следващата инструкция е в клетка A35.","ТРАНСПОРТ","Планиран разход","Действителен разход","Разлика",null,"Лични",null,null,{"$f":"Заеми[[#This Row],[Планиран разход]]-Заеми[[#This Row],[Действителен разход]]","v":{"v":0,"d":"0.00 лв."}}]
[null,"Плащане за автомобил",null,null,{"$f":"Транспорт[[#This Row],[Планиран разход]]-Транспорт[[#This Row],[Действителен разход]]","v":{"v":0,"d":"0.00 лв."}},null,"Студентски",null,null,{"$f":"Заеми[[#This Row],[Планиран разход]]-Заеми[[#This Row],[Действителен разход]]","v":{"v":0,"d":"0.00 лв."}}]
[null,"Разходи за автобус/такси",null,null,{"$f":"Транспорт[[#This Row],[Планиран разход]]-Транспорт[[#This Row],[Действителен разход]]","v":{"v":0,"d":"0.00 лв."}},null,"Кредитна карта",null,null,{"$f":"Заеми[[#This Row],[Планиран разход]]-Заеми[[#This Row],[Действителен разход]]","v":{"v":0,"d":"0.00 лв."}}]
[null,"Застраховка",null,null,{"$f":"Транспорт[[#This Row],[Планиран разход]]-Транспорт[[#This Row],[Действителен разход]]","v":{"v":0,"d":"0.00 лв."}},null,"Кредитна карта",null,null,{"$f":"Заеми[[#This Row],[Планиран разход]]-Заеми[[#This Row],[Действителен разход]]","v":{"v":0,"d":"0.00 лв."}}]
[null,"Лицензи",null,null,{"$f":"Транспорт[[#This Row],[Планиран разход]]-Транспорт[[#This Row],[Действителен разход]]","v":{"v":0,"d":"0.00 лв."}},null,"Кредитна карта",null,null,{"$f":"Заеми[[#This Row],[Планиран разход]]-Заеми[[#This Row],[Действителен разход]]","v":{"v":0,"d":"0.00 лв."}}]
[null,"Гориво",null,null,{"$f":"Транспорт[[#This Row],[Планиран разход]]-Транспорт[[#This Row],[Действителен разход]]","v":{"v":0,"d":"0.00 лв."}},null,"Други",null,null,{"$f":"Заеми[[#This Row],[Планиран разход]]-Заеми[[#This Row],[Действителен разход]]","v":{"v":0,"d":"0.00 лв."}}]
[null,"Поддръжка",null,null,{"$f":"Транспорт[[#This Row],[Планиран разход]]-Транспорт[[#This Row],[Действителен разход]]","v":{"v":0,"d":"0.00 лв."}},null,"Междинна сума",null,null,{"$f":"SUBTOTAL(109,Заеми[Разлика])","v":{"v":0,"d":"0.00 лв."}}]
[null,"Други",null,null,{"$f":"Транспорт[[#This Row],[Планиран разход]]-Транспорт[[#This Row],[Действителен разход]]","v":{"v":0,"d":"0.00 лв."}}]
[null,"Междинна сума",null,null,{"$f":"SUBTOTAL(109,Транспорт[Разлика])","v":{"v":0,"d":"0.00 лв."}},null,"ДАНЪЦИ","Планиран разход","Действителен разход","Разлика"]
[{"$nulls":6},"Държавен",null,null,{"$f":"Данъци[[#This Row],[Планиран разход]]-Данъци[[#This Row],[Действителен разход]]","v":{"v":0,"d":"0.00 лв."}}]
["Въведете подробните данни в таблицата \"Застраховка\", започваща от клетката вдясно, и в таблицата \"Данъци\", започваща от клетка G33. Следващата инструкция е в клетка A42.","ЗАСТРАХОВКА","Планиран разход","Действителен разход","Разлика",null,"Областен",null,null,{"$f":"Данъци[[#This Row],[Планиран разход]]-Данъци[[#This Row],[Действителен разход]]","v":{"v":0,"d":"0.00 лв."}}]
[null,"Дом",null,null,{"$f":"Застраховки[[#This Row],[Планиран разход]]-Застраховки[[#This Row],[Действителен разход]]","v":{"v":0,"d":"0.00 лв."}},null,"Местен",null,null,{"$f":"Данъци[[#This Row],[Планиран разход]]-Данъци[[#This Row],[Действителен разход]]","v":{"v":0,"d":"0.00 лв."}}]
[null,"Здравеопазване",null,null,{"$f":"Застраховки[[#This Row],[Планиран разход]]-Застраховки[[#This Row],[Действителен разход]]","v":{"v":0,"d":"0.00 лв."}},null,"Други",null,null,{"$f":"Данъци[[#This Row],[Планиран разход]]-Данъци[[#This Row],[Действителен разход]]","v":{"v":0,"d":"0.00 лв."}}]
[null,"Живот",null,null,{"$f":"Застраховки[[#This Row],[Планиран разход]]-Застраховки[[#This Row],[Действителен разход]]","v":{"v":0,"d":"0.00 лв."}},null,"Междинна сума",null,null,{"$f":"SUBTOTAL(109,Данъци[Разлика])","v":{"v":0,"d":"0.00 лв."}}]
[null,"Други",null,null,{"$f":"Застраховки[[#This Row],[Планиран разход]]-Застраховки[[#This Row],[Действителен разход]]","v":{"v":0,"d":"0.00 лв."}}]
[null,"Междинна сума",null,null,{"$f":"SUBTOTAL(109,Застраховки[Разлика])","v":{"v":0,"d":"0.00 лв."}},null,"СПЕСТЯВАНИЯ ИЛИ ИНВЕСТИЦИИ","Планиран разход","Действителен разход","Разлика"]
[{"$nulls":6},"Пенсионна сметка",null,null,{"$f":"Спестявания[[#This Row],[Планиран разход]]-Спестявания[[#This Row],[Действителен разход]]","v":{"v":0,"d":"0.00 лв."}}]
["Въведете подробните данни в таблицата \"Храна\", започваща от клетката вдясно, и в таблицата \"Спестявания\", започваща от клетка G40. Следващата инструкция е в клетка A48.","ХРАНА","Планиран разход","Действителен разход","Разлика",null,"Инвестиционна сметка",null,null,{"$f":"Спестявания[[#This Row],[Планиран разход]]-Спестявания[[#This Row],[Действителен разход]]","v":{"v":0,"d":"0.00 лв."}}]
[null,"Хранителни стоки",null,null,{"$f":"Храна[[#This Row],[Планиран разход]]-Храна[[#This Row],[Действителен разход]]","v":{"v":0,"d":"0.00 лв."}},null,"Други",null,null,{"$f":"Спестявания[[#This Row],[Планиран разход]]-Спестявания[[#This Row],[Действителен разход]]","v":{"v":0,"d":"0.00 лв."}}]
[null,"Заведения",null,null,{"$f":"Храна[[#This Row],[Планиран разход]]-Храна[[#This Row],[Действителен разход]]","v":{"v":0,"d":"0.00 лв."}},null,"Междинна сума",null,null,{"$f":"SUBTOTAL(109,Спестявания[Разлика])","v":{"v":0,"d":"0.00 лв."}}]
[null,"Други",null,null,{"$f":"Храна[[#This Row],[Планиран разход]]-Храна[[#This Row],[Действителен разход]]","v":{"v":0,"d":"0.00 лв."}}]
[null,"Междинна сума",null,null,{"$f":"SUBTOTAL(109,Храна[Разлика])","v":{"v":0,"d":"0.00 лв."}},null,"ПОДАРЪЦИ И ДАРЕНИЯ","Планиран разход","Действителен разход","Разлика"]
[{"$nulls":6},"Благотворителност 1",null,null,{"$f":"Подаръци[[#This Row],[Планиран разход]]-Подаръци[[#This Row],[Действителен разход]]","v":{"v":0,"d":"0.00 лв."}}]
["Въведете подробните данни в таблицата \"Домашни любимци\", започваща от клетката вдясно, и в таблицата \"Подаръци\", започваща от клетка G46. Следващата инструкция е в клетка A56.","ДОМАШНИ ЛЮБИМЦИ","Планиран разход","Действителен разход","Разлика",null,"Благотворителност 2",null,null,{"$f":"Подаръци[[#This Row],[Планиран разход]]-Подаръци[[#This Row],[Действителен разход]]","v":{"v":0,"d":"0.00 лв."}}]
[null,"Храна",null,null,{"$f":"ДомашниЛюбимци[[#This Row],[Планиран разход]]-ДомашниЛюбимци[[#This Row],[Действителен разход]]","v":{"v":0,"d":"0.00 лв."}},null,"Благотворителност 3",null,null,{"$f":"Подаръци[[#This Row],[Планиран разход]]-Подаръци[[#This Row],[Действителен разход]]","v":{"v":0,"d":"0.00 лв."}}]
[null,"Медицински",null,null,{"$f":"ДомашниЛюбимци[[#This Row],[Планиран разход]]-ДомашниЛюбимци[[#This Row],[Действителен разход]]","v":{"v":0,"d":"0.00 лв."}},null,"Междинна сума",null,null,{"$f":"SUBTOTAL(109,Подаръци[Разлика])","v":{"v":0,"d":"0.00 лв."}}]
[null,"Поддържане",null,null,{"$f":"ДомашниЛюбимци[[#This Row],[Планиран разход]]-ДомашниЛюбимци[[#This Row],[Действителен разход]]","v":{"v":0,"d":"0.00 лв."}}]
[null,"Играчки",null,null,{"$f":"ДомашниЛюбимци[[#This Row],[Планиран разход]]-ДомашниЛюбимци[[#This Row],[Действителен разход]]","v":{"v":0,"d":"0.00 лв."}},null,"ЮРИДИЧЕСКИ","Планиран разход","Действителен разход","Разлика"]
[null,"Други",null,null,{"$f":"ДомашниЛюбимци[[#This Row],[Планиран разход]]-ДомашниЛюбимци[[#This Row],[Действителен разход]]","v":{"v":0,"d":"0.00 лв."}},null,"Адвокат",null,null,{"$f":"Правни[[#This Row],[Планиран разход]]-Правни[[#This Row],[Действителен разход]]","v":{"v":0,"d":"0.00 лв."}}]
[null,"Междинна сума",null,null,{"$f":"SUBTOTAL(109,ДомашниЛюбимци[Разлика])","v":{"v":0,"d":"0.00 лв."}},null,"Издръжка",null,null,{"$f":"Правни[[#This Row],[Планиран разход]]-Правни[[#This Row],[Действителен разход]]","v":{"v":0,"d":"0.00 лв."}}]
[{"$nulls":6},"Плащания по запор или решение",null,null,{"$f":"Правни[[#This Row],[Планиран разход]]-Правни[[#This Row],[Действителен разход]]","v":{"v":0,"d":"0.00 лв."}}]
["Въведете подробните данни в таблицата \"Хигиенни материали\", започваща от клетката вдясно, и в таблицата \"Юридически\", започваща от клетка G52. Следващата инструкция е в клетка A59.","ХИГИЕННИ МАТЕРИАЛИ","Планиран разход","Действителен разход","Разлика",null,"Други",null,null,{"$f":"Правни[[#This Row],[Планиран разход]]-Правни[[#This Row],[Действителен разход]]","v":{"v":0,"d":"0.00 лв."}}]
[null,"Медицински",null,null,{"$f":"ХигиенниМатериали[[#This Row],[Планиран разход]]-ХигиенниМатериали[[#This Row],[Действителен разход]]","v":{"v":0,"d":"0.00 лв."}},null,"Междинна сума",null,null,{"$f":"SUBTOTAL(109,Правни[Разлика])","v":{"v":0,"d":"0.00 лв."}}]
[null,"Коса/нокти",null,null,{"$f":"ХигиенниМатериали[[#This Row],[Планиран разход]]-ХигиенниМатериали[[#This Row],[Действителен разход]]","v":{"v":0,"d":"0.00 лв."}}]
["Общите планирани разходи се изчисляват автоматично в клетка J59, общите действителни разходи – в клетка J61, а общата разлика – в клетка J63.","Облекло",null,null,{"$f":"ХигиенниМатериали[[#This Row],[Планиран разход]]-ХигиенниМатериали[[#This Row],[Действителен разход]]","v":{"v":0,"d":"0.00 лв."}},null,"ОБЩИ ПЛАНИРАНИ РАЗХОДИ",null,null,{"$f":"SUBTOTAL(109,Домакинство[Планиран разход],Транспорт[Планиран разход],Застраховки[Планиран разход],Храна[Планиран разход],ДомашниЛюбимци[Планиран разход],ХигиенниМатериали[Планиран разход],Развлечения[Планиран разход],Заеми[Планиран разход],Данъци[Планиран разход],Спестявания[Планиран разход],Подаръци[Планиран разход],Правни[Планиран разход])","v":{"v":1195,"d":"1,195.00 лв."}}]
[null,"Химическо чистене",null,null,{"$f":"ХигиенниМатериали[[#This Row],[Планиран разход]]-ХигиенниМатериали[[#This Row],[Действителен разход]]","v":{"v":0,"d":"0.00 лв."}}]
[null,"Здравен клуб",null,null,{"$f":"ХигиенниМатериали[[#This Row],[Планиран разход]]-ХигиенниМатериали[[#This Row],[Действителен разход]]","v":{"v":0,"d":"0.00 лв."}},null,"ОБЩИ ДЕЙСТВИТЕЛНИ РАЗХОДИ",null,null,{"$f":"SUBTOTAL(109,Домакинство[Действителен разход],Транспорт[Действителен разход],Застраховки[Действителен разход],Храна[Действителен разход],ДомашниЛюбимци[Действителен разход],ХигиенниМатериали[Действителен разход],Развлечения[Действителен разход],Заеми[Действителен разход],Данъци[Действителен разход],Спестявания[Действителен разход],Подаръци[Действителен разход],Правни[Действителен разход])","v":{"v":1236,"d":"1,236.00 лв."}}]
[null,"Организационни разходи или такси",null,null,{"$f":"ХигиенниМатериали[[#This Row],[Планиран разход]]-ХигиенниМатериали[[#This Row],[Действителен разход]]","v":{"v":0,"d":"0.00 лв."}}]
[null,"Други",null,null,{"$f":"ХигиенниМатериали[[#This Row],[Планиран разход]]-ХигиенниМатериали[[#This Row],[Действителен разход]]","v":{"v":0,"d":"0.00 лв."}},null,"ОБЩА РАЗЛИКА",null,null,{"$f":"J59-J61","v":{"v":-41,"d":"-41.00 лв."}}]
[null,"Междинна сума",null,null,{"$f":"SUBTOTAL(109,ХигиенниМатериали[Разлика])","v":{"v":0,"d":"0.00 лв."}}]